[Event "44th Chess Olympiad Open 2022"]
[Site "Chennai"]
[Date "2022.08.01"]
[Round "4.48"]
[White "Anhwere, Bernard"]
[Black "Zambrana, Osvaldo"]
[Result "0-1"]
[WhiteElo "1890"]
[BlackElo "2417"]
[Annotator "RC"]
[PlyCount "100"]
[EventDate "2022.??.??"]
[TimeControl "60"]

1. d4 {[%emt 0:00:03]} Nf6 {[%emt 0:00:22]} 2. Nf3 {[%emt 0:00:21]} e6 {
[%emt 0:00:12]} 3. g3 {[%emt 0:00:11]} d5 {[%emt 0:00:19]} 4. c4 {[%emt 0:00:
00]} Be7 {[%emt 0:00:36]} 5. Bg2 {[%emt 0:00:30]} O-O {[%emt 0:00:11]} 6. O-O {
[%emt 0:00:23]} dxc4 {[%emt 0:00:03]} 7. Qc2 {[%emt 0:00:48]} a6 {[%emt 0:00:
00]} 8. Qxc4 {[%emt 0:00:24]} b5 {[%emt 0:00:09]} 9. Qc2 {[%emt 0:00:55]} Bb7 {
[%emt 0:00:09]} 10. Bf4 {[%emt 0:04:25]} Bd6 {[%emt 0:12:28]} 11. Bxd6 {
[%emt 0:02:33]} cxd6 {[%emt 0:00:48]} 12. Nbd2 {[%emt 0:01:41]} Nbd7 {[%emt 0:
00:00]} 13. Rac1 {[%emt 0:03:15]} Qb6 {[%emt 0:06:36]} 14. e4 {[%emt 0:14:12]}
Rac8 {[%emt 0:02:59]} 15. Qd3 {[%emt 0:01:25]} Rfd8 {[%emt 0:07:09]} 16. Rfe1 {
[%emt 0:07:51]} h6 {[%emt 0:01:54]} 17. Qe2 {[%emt 0:10:07]} e5 {[%emt 0:11:24]
} 18. d5 {[%emt 0:04:20]} Qa5 {[%emt 0:05:24]} 19. a3 {[%emt 0:02:59]} Qa4 {
[%emt 0:00:13]} 20. Qe3 {[%emt 0:05:16]} b4 {[%emt 0:22:04]} 21. b3 {[%emt 0:
00:00]} Qa5 {[%emt 0:06:06]} 22. Nc4 {[%emt 0:03:07]} Qc5 {[%emt 0:00:17]} 23.
Qxc5 {[%emt 0:09:46]} Nxc5 {[%emt 0:00:08]} 24. Na5 {[%emt 0:06:34]} Nd3 {
[%emt 0:04:03]} 25. Rxc8 {[%emt 0:04:36]} Rxc8 {[%emt 0:00:03]} 26. Rd1 {
[%emt 0:01:39]} bxa3 {[%emt 0:00:16]} 27. Nc4 {[%emt 0:02:11]} Nb2 {[%emt 0:00:
00]} 28. Ra1 {[%emt 0:01:35]} Nxc4 {[%emt 0:00:22]} 29. bxc4 {[%emt 0:00:11]}
Rxc4 {[%emt 0:00:03]} 30. Nd2 {[%emt 0:00:26]} Rc3 {[%emt 0:00:32]} 31. Bf1 {
[%emt 0:04:11]} g5 {[%emt 0:03:21]} 32. Ra2 {[%emt 0:00:00]} a5 {[%emt 0:00:52]
} 33. Kg2 {[%emt 0:00:00]} Nxd5 {[%emt 0:00:45]} 34. Nb1 {[%emt 0:00:00]} Rc1 {
[%emt 0:01:47]} 35. Nxa3 {[%emt 0:00:00]} Nc3 {[%emt 0:00:21]} 36. Rb2 {
[%emt 0:00:00]} Bxe4+ {[%emt 0:00:10]} 37. f3 {[%emt 0:00:08]} Bxf3+ {[%emt 0:
00:00]} 38. Kxf3 {[%emt 0:00:22]} Rxf1+ {[%emt 0:00:11]} 39. Kg2 {[%emt 0:00:
00]} Ra1 {[%emt 0:00:10]} 40. Nc4 {[%emt 0:00:26]} a4 {[%emt 0:03:09]} 41. Rb8+
{[%emt 0:30:33]} Kg7 {[%emt 0:30:09]} 42. Nxd6 {[%emt 0:00:14]} a3 {[%emt 0:00:
00]} 43. Nf5+ {[%emt 0:00:00]} Kf6 {[%emt 0:00:00]} 44. g4 {[%emt 0:00:00]} e4
{[%emt 0:00:00]} 45. Rc8 {[%emt 0:00:00]} Ra2+ {[%emt 0:00:00]} 46. Kh3 {
[%emt 0:00:00]} Nd5 {[%emt 0:00:00]} 47. Rc6+ {[%emt 0:00:00]} Ke5 {[%emt 0:00:
00]} 48. Rc5 {[%emt 0:00:00]} Rd2 {[%emt 0:00:00]} 49. Ra5 {[%emt 0:00:00]} Kf4
{[%emt 0:00:00]} 50. Rxa3 {[%emt 0:00:00]} Rd3+ {[%emt 0:00:00]} 0-1

[Event "44th Chess Olympiad Open 2022"]
[Site "Chennai"]
[Date "2022.08.01"]
[Round "4.48"]
[White "Adu Jnr, Lionel"]
[Black "Bolanos, Fernando"]
[Result "0-1"]
[WhiteElo "1824"]
[BlackElo "2258"]
[Annotator "NA RC"]
[PlyCount "78"]
[EventDate "2022.??.??"]
[TimeControl "60"]

1. g3 {[%emt 0:00:06]} d5 {[%emt 0:00:57]} 2. Bg2 {[%emt 0:00:06]} e5 {[%emt 0:
00:00]} 3. d4 {[%emt 0:00:42]} exd4 {[%emt 0:04:11]} 4. Qxd4 {[%emt 0:00:10]}
Nf6 {[%emt 0:00:04]} 5. Bg5 {[%emt 0:00:39]} Be7 {[%emt 0:00:49]} 6. c3 {
[%emt 0:01:58]} c6 {[%emt 0:08:22]} 7. Nf3 {[%emt 0:02:22]} O-O {[%emt 0:02:04]
} 8. O-O {[%emt 0:00:27]} h6 {[%emt 0:08:21]} 9. Bxf6 {[%emt 0:00:44]} Bxf6 {
[%emt 0:00:06]} 10. Qa4 {[%emt 0:03:12]} Bf5 {[%emt 0:08:21]} 11. Nbd2 {
[%emt 0:06:39]} Nd7 {[%emt 0:07:26]} 12. Nd4 {[%emt 0:05:48]} Bg6 {[%emt 0:00:
00]} 13. Rfe1 {[%emt 0:21:10]} Re8 {[%emt 0:03:46]} 14. Rac1 {[%emt 0:07:30]}
Nc5 {[%emt 0:06:35]} 15. Qa3 {[%emt 0:01:14]} Be7 {[%emt 0:08:36]} 16. b4 {
[%emt 0:00:20]} Nd7 {[%emt 0:00:18]} 17. Qb3 {[%emt 0:05:06]} a5 {[%emt 0:00:
00]} 18. a3 {[%emt 0:01:02]} Bf6 {[%emt 0:06:25]} 19. e4 {[%emt 0:11:29]} c5 {
[%emt 0:07:57]} 20. Nc2 {[%emt 0:14:36]} axb4 {[%emt 0:05:37]} 21. axb4 {
[%emt 0:02:05]} c4 {[%emt 0:00:47]} 22. Qb2 {[%emt 0:05:19]} Ne5 {[%emt 0:00:
00]} 23. Bf1 {[%emt 0:01:22]} dxe4 {[%emt 0:00:27]} 24. Nxc4 {[%emt 0:05:36]}
Nf3+ {[%emt 0:00:47]} 25. Kg2 {[%emt 0:00:01]} Nxe1+ {[%emt 0:00:33]} 26. Rxe1
{[%emt 0:01:04]} Bh5 {[%emt 0:01:16]} 27. N2e3 {[%emt 0:00:28]} Bf3+ {[%emt 0:
00:00]} 28. Kg1 {[%emt 0:00:03]} Rc8 {[%emt 0:02:48]} 29. Be2 {[%emt 0:00:46]}
Bxe2 {[%emt 0:04:26]} 30. Qxe2 {[%emt 0:00:02]} Rc7 {[%emt 0:01:32]} 31. Rd1 {
[%emt 0:00:07]} Rd7 {[%emt 0:00:19]} 32. Rxd7 {[%emt 0:01:03]} Qxd7 {[%emt 0:
00:00]} 33. Nd1 {[%emt 0:00:44]} Rd8 {[%emt 0:02:00]} 34. Ncb2 {[%emt 0:00:22]}
Qd2 {[%emt 0:00:36]} 35. Qxe4 {[%emt 0:00:58]} Bxc3 {[%emt 0:00:15]} 36. Nxc3 {
[%emt 0:01:38]} Qxc3 {[%emt 0:00:13]} 37. Qe7 {[%emt 0:01:10]} Qc1+ {[%emt 0:
00:00]} 38. Kg2 {[%emt 0:00:15]} Qc6+ {[%emt 0:00:14]} 39. Kg1 {[%emt 0:00:51]}
Re8 {[%emt 0:00:11]} 0-1

[Event "44th Chess Olympiad Open 2022"]
[Site "Chennai"]
[Date "2022.08.01"]
[Round "4.49"]
[White "Beukes, Dante M"]
[Black "Al-Zendani, Zendan"]
[Result "1/2-1/2"]
[WhiteElo "2234"]
[BlackElo "2284"]
[Annotator "TA"]
[PlyCount "108"]
[EventDate "2022.??.??"]
[TimeControl "60"]

{[%evp 15,108,32,53,42,59,23,29,0,12,0,0,0,0,0,0,0,32,40,42,30,38,37,43,24,52,
0,0,2,2,18,23,18,18,15,27,30,25,0,0,0,0,0,0,0,0,-112,-112,-87,0,0,0,0,0,-137,0,
0,0,0,0,0,64,0,32,0,0,0,0,0,13,13,15,0,20,23,32,4,4,0,0,0,0,0,0,0,0,0,0,0,0,0,
0,0,0,0,0]} 1. e4 {[%emt 0:00:05]} d5 {[%emt 0:00:16]} 2. exd5 {[%emt 0:00:05]}
Nf6 {[%emt 0:00:07]} 3. Bb5+ {[%emt 0:00:46]} Bd7 {[%emt 0:06:13]} 4. Bc4 {
[%emt 0:00:07]} Bg4 {[%emt 0:00:57]} 5. f3 {[%emt 0:00:05]} Bc8 {[%emt 0:10:35]
} 6. Nc3 {[%emt 0:03:51]} Nbd7 {[%emt 0:05:48]} 7. d4 {[%emt 0:00:33]} Nb6 {
[%emt 0:03:49]} 8. Bb3 {[%emt 0:01:19]} Nbxd5 {[%emt 0:07:16]} 9. Nxd5 {
[%emt 0:00:06] B01: Scandinavian Defence.} Nxd5 {[%emt 0:00:06] [#]} 10. Qd3
$146 {[%emt 0:00:12]} ({Predecessor:} 10. c4 Nf6 11. Ne2 e6 12. O-O Be7 13. Be3
O-O 14. Nc3 b6 15. Qe2 Ba6 16. Qf2 Qd7 17. Rfd1 Rfd8 18. Rac1 {½-½ (39)
Sveshnikov,E (2528)-Shishkov,A (2385) Tallinn 2014}) 10... e6 {[%emt 0:05:44]}
11. Bd2 {[%emt 0:00:59] White has an edge.} Be7 {[%emt 0:00:46]} 12. O-O-O {
[%emt 0:01:45]} a5 {[%emt 0:04:27][%cal Ya7a5,Ya5a4,Ya4a3]} 13. c3 {[%emt 0:03:
46]} a4 {[%emt 0:01:10]} 14. Bc2 {[%emt 0:05:11]} a3 {[%emt 0:00:18]} 15. b3 {
[%emt 0:00:43]} Bg5 {[%emt 0:01:55]} 16. Ne2 {[%emt 0:03:53]} Bxd2+ {[%emt 0:
00:35]} 17. Qxd2 {[%emt 0:01:00]} b5 {[%emt 0:04:58]} 18. Rhe1 {[%emt 0:04:33]}
O-O {[%emt 0:01:56]} 19. Nf4 {[%emt 0:05:11]} c6 {[%emt 0:00:00][%cal Yb5b4]}
20. h4 {[%emt 0:24:03]} (20. Qd3 g6 21. Qd2 Qa5 $11) ({Better is} 20. Nd3 $14)
20... b4 $11 {[%emt 0:05:58]} (20... Qxh4 $2 21. Nxd5 h6 22. Rh1 $18) 21. Nxd5
{[%emt 0:00:52]} cxd5 {[%emt 0:00:16]} 22. cxb4 {[%emt 0:05:28]} Rb8 {[%emt 0:
03:57]} 23. Kb1 {[%emt 0:02:38]} Qd6 {[%emt 0:00:00]} 24. h5 {[%emt 0:03:17]}
Qxb4 {[%emt 0:05:48]} 25. Qd3 {[%emt 0:00:22][%csl Gc2][%cal Rd3h7]} f5 {
[%emt 0:01:52]} 26. g4 {[%emt 0:04:12]} Bd7 $40 {[%emt 0:01:06] Black attacks.}
27. Qe3 {[%emt 0:09:54]} Rbc8 {[%emt 0:03:17]} 28. h6 {[%emt 0:04:02]} f4 {
[%emt 0:02:28]} 29. Qe5 {[%emt 0:00:00][%csl Gh6][%cal Re5g7]} ({Of course not
} 29. Qd3 g6 30. Qd2 Rc3 $15) 29... gxh6 {[%emt 0:00:26] ( -> ...Qc3)} 30. Qe2
{[%emt 0:00:43]} (30. Re2 $1 $11) 30... Qc3 $17 {[%emt 0:01:49][%csl Ga3][%cal
Rc3b2]} 31. Bd3 {[%emt 0:00:00]} Rf7 {[%emt 0:03:53]} ({Black should play} 
31... Rc6 $1 $17 {Strongly threatening ...Rfc8.} 32. Rc1 Qxd4 33. Rxc6 Bxc6 34.
Qxe6+ Kg7 35. Qe7+ Rf7 36. Qe5+ Qxe5 37. Rxe5 d4) 32. Rh1 $11 {[%emt 0:00:46]}
Kf8 {[%emt 0:01:29]} 33. Rh2 {[%emt 0:02:31]} Ba4 {[%emt 0:02:27][%cal Ya4b3]}
34. Qc2 {[%emt 0:01:00] [#]} (34. Rxh6 Bxb3 $1 35. axb3 Rb7 36. Bb5 Rxb5 $1 37.
Rf6+ Kg7) (34. Qxe6 $11 Bxb3 35. Qxh6+ Rg7 36. Qf6+ Kg8 37. Qe6+ Kh8 38. Qf6)
34... Qxc2+ {[%emt 0:00:18]} (34... Rb7 $1 $17 {[%cal Ra4b3] aiming for .. .
Bxb3!} 35. Qxc3 Rxc3) 35. Rxc2 {[%emt 0:00:16]} Rxc2 {[%emt 0:00:29]} 36. Kxc2
$17 {[%emt 0:00:08] Endgame KRB-KRB} Be8 {[%emt 0:00:38]} 37. Kc3 {[%emt 0:00:
18]} Rb7 {[%emt 0:00:37]} (37... Rc7+ $11 38. Kb4 h5) 38. Re1 {[%emt 0:00:29]}
(38. Rh1 $1 $14) 38... Ke7 {[%emt 0:04:57]} 39. Bxh7 {[%emt 0:00:00]} (39. Bf5
$5 {[%cal Re1e6]}) 39... Kf6 {[%emt 0:01:17]} 40. Bd3 {[%emt 0:00:16]} h5 {
[%emt 0:01:10]} 41. Rg1 {[%emt 0:32:27]} Rg7 {[%emt 0:00:00]} 42. b4 {[%emt 0:
00:00] b5 is the strong threat.} hxg4 {[%emt 0:00:00]} 43. fxg4 {[%emt 0:00:00]
} f3 {[%emt 0:00:00]} 44. Rg3 {[%emt 0:00:00]} Ke7 {[%emt 0:00:00]} (44... Rc7+
$2 45. Kb3 $18) 45. Rxf3 {[%emt 0:00:00] And now Rg3 would win.} (45. b5 {
with more complications.} f2 46. g5 Kd6 47. Kd2) 45... Rxg4 {[%emt 0:00:00]
The position is equal.} 46. Re3 {[%emt 0:00:00]} Kd6 {[%emt 0:00:00]} 47. Be2 {
[%emt 0:00:00]} Rh4 {[%emt 0:00:00]} 48. Ba6 {[%emt 0:00:00]} Bd7 {[%emt 0:00:
00]} 49. Rg3 {[%emt 0:00:00]} Kc7 {[%emt 0:00:00]} 50. Bd3 {[%emt 0:00:00]} Rh2
{[%emt 0:00:00]} 51. Kb3 {[%emt 0:00:00]} Rh4 {[%emt 0:00:00]} 52. Kc3 {
[%emt 0:00:00]} Rh2 {[%emt 0:00:00]} 53. Kb3 {[%emt 0:00:00]} Rh4 {[%emt 0:00:
00]} 54. Kc3 {[%emt 0:01:50]} Rh2 {[%emt 0:00:00] Weighted Error Value:
White=0.16 (very precise) /Black=0.13 (very precise)} 1/2-1/2

[Event "44th Chess Olympiad Open 2022"]
[Site "Chennai"]
[Date "2022.08.01"]
[Round "4.49"]
[White "Al-Aqrabi, Saleh"]
[Black "Eichab, Charles"]
[Result "1-0"]
[WhiteElo "2172"]
[BlackElo "2048"]
[Annotator "NA RC"]
[PlyCount "54"]
[EventDate "2022.??.??"]
[TimeControl "60"]

1. d4 {[%emt 0:00:02]} Nf6 {[%emt 0:00:11]} 2. Bf4 {[%emt 0:00:07]} g6 {
[%emt 0:01:15]} 3. e3 {[%emt 0:00:16]} Bg7 {[%emt 0:00:05]} 4. c3 {[%emt 0:00:
00]} O-O {[%emt 0:00:13]} 5. Be2 {[%emt 0:00:09]} d5 {[%emt 0:00:10]} 6. Nd2 {
[%emt 0:00:08]} Nbd7 {[%emt 0:01:42]} 7. h3 {[%emt 0:00:03]} c5 {[%emt 0:00:22]
} 8. Ngf3 {[%emt 0:00:04]} Qb6 {[%emt 0:09:36]} 9. Qb3 {[%emt 0:00:09]} Qxb3 {
[%emt 0:07:10]} 10. axb3 {[%emt 0:00:02]} cxd4 {[%emt 0:01:11]} 11. exd4 {
[%emt 0:00:02]} Nh5 {[%emt 0:03:17]} 12. Bh2 {[%emt 0:00:23]} Nhf6 {[%emt 0:00:
00]} 13. b4 {[%emt 0:01:32]} Ne4 {[%emt 0:05:37]} 14. O-O {[%emt 0:01:59]} Nxd2
{[%emt 0:00:42]} 15. Nxd2 {[%emt 0:00:12]} e5 {[%emt 0:00:35]} 16. dxe5 {
[%emt 0:01:00]} Nxe5 {[%emt 0:01:43]} 17. Rfe1 {[%emt 0:00:28]} Be6 {[%emt 0:
00:00]} 18. Ba6 {[%emt 0:07:31]} bxa6 {[%emt 0:08:28]} 19. Bxe5 {[%emt 0:00:09]
} Bxe5 {[%emt 0:00:08]} 20. Rxe5 {[%emt 0:00:39]} d4 {[%emt 0:00:20]} 21. Rxa6
{[%emt 0:01:18]} Rac8 {[%emt 0:09:41]} 22. Rxa7 {[%emt 0:02:23]} dxc3 {[%emt 0:
00:00]} 23. bxc3 {[%emt 0:00:02]} Rxc3 {[%emt 0:01:10]} 24. Ne4 {[%emt 0:00:01]
} Rc1+ {[%emt 0:02:49]} 25. Kh2 {[%emt 0:00:03]} Rb8 {[%emt 0:01:35]} 26. Nf6+
{[%emt 0:00:08]} Kf8 {[%emt 0:04:52]} 27. Rxe6 {[%emt 0:00:18]} Rxb4 {[%emt 0:
00:00]} 1-0

[Event "44th Chess Olympiad Open 2022"]
[Site "Chennai"]
[Date "2022.08.01"]
[Round "4.49"]
[White "Al-Subaihi, Khalil"]
[Black "Ndahangwapo, Heskiel"]
[Result "1-0"]
[WhiteElo "2141"]
[BlackElo "1904"]
[Annotator "NA RC"]
[PlyCount "85"]
[EventDate "2022.??.??"]
[TimeControl "60"]

1. e4 {[%emt 0:00:03]} c5 {[%emt 0:00:59]} 2. Nf3 {[%emt 0:00:07]} d6 {[%emt 0:
00:00]} 3. d4 {[%emt 0:00:05]} cxd4 {[%emt 0:00:04]} 4. Nxd4 {[%emt 0:00:04]}
Nf6 {[%emt 0:00:08]} 5. Nc3 {[%emt 0:00:06]} a6 {[%emt 0:00:04]} 6. Bc4 {
[%emt 0:00:11]} g6 {[%emt 0:00:52]} 7. Bb3 {[%emt 0:00:32]} Bg7 {[%emt 0:00:06]
} 8. f3 {[%emt 0:00:07]} Qc7 {[%emt 0:00:12]} 9. Be3 {[%emt 0:00:10]} b5 {
[%emt 0:00:06]} 10. Qd2 {[%emt 0:00:10]} Bb7 {[%emt 0:00:18]} 11. O-O-O {
[%emt 0:00:41]} Nbd7 {[%emt 0:00:33]} 12. g4 {[%emt 0:01:26]} Nc5 {[%emt 0:00:
00]} 13. Kb1 {[%emt 0:00:29]} O-O {[%emt 0:05:34]} 14. Bh6 {[%emt 0:01:58]} b4
{[%emt 0:00:50]} 15. Nd5 {[%emt 0:00:58]} Bxd5 {[%emt 0:01:02]} 16. Bxd5 {
[%emt 0:00:08]} Nxd5 {[%emt 0:00:18]} 17. exd5 {[%emt 0:00:31]} Rab8 {[%emt 0:
00:00]} 18. Bxg7 {[%emt 0:04:21]} Kxg7 {[%emt 0:00:13]} 19. h4 {[%emt 0:12:17]}
Kh8 {[%emt 0:12:53]} 20. h5 {[%emt 0:01:41]} Rg8 {[%emt 0:00:29]} 21. hxg6 {
[%emt 0:04:11]} Rxg6 {[%emt 0:00:19]} 22. Rh3 {[%emt 0:11:15]} e5 {[%emt 0:00:
00]} 23. Rdh1 {[%emt 0:03:50]} f5 {[%emt 0:06:04]} 24. Rxh7+ {[%emt 0:07:42]}
Qxh7 {[%emt 0:00:09]} 25. Rxh7+ {[%emt 0:00:02]} Kxh7 {[%emt 0:00:09]} 26. Nxf5
{[%emt 0:00:46]} Rh8 {[%emt 0:06:44]} 27. Qxb4 {[%emt 0:08:22]} Rf8 {[%emt 0:
00:00]} 28. a3 {[%emt 0:00:55]} Rf7 {[%emt 0:00:37]} 29. Nxd6 {[%emt 0:02:46]}
Rxd6 {[%emt 0:00:49]} 30. Qxc5 {[%emt 0:00:08]} Rfd7 {[%emt 0:01:24]} 31. c4 {
[%emt 0:00:23]} Kg6 {[%emt 0:00:11]} 32. Qe3 {[%emt 0:00:28]} Re7 {[%emt 0:00:
00]} 33. Qe4+ {[%emt 0:00:21]} Kf7 {[%emt 0:05:10]} 34. c5 {[%emt 0:04:40]} Rf6
{[%emt 0:01:28]} 35. d6 {[%emt 0:00:22]} Ree6 {[%emt 0:01:51]} 36. Qb7+ {
[%emt 0:03:07]} Kg6 {[%emt 0:06:58]} 37. d7 {[%emt 0:03:08]} Re7 {[%emt 0:00:
00]} 38. Qc8 {[%emt 0:00:22]} Rxd7 {[%emt 0:00:41]} 39. Qxd7 {[%emt 0:00:20]}
Rxf3 {[%emt 0:00:06]} 40. Qe6+ {[%emt 0:00:20]} Rf6 {[%emt 0:00:06]} 41. Qxe5 {
[%emt 0:30:22]} Rf1+ {[%emt 0:31:11]} 42. Ka2 {[%emt 0:00:12]} Rf6 {[%emt 0:00:
00]} 43. c6 {[%emt 0:00:48]} 1-0

[Event "44th Chess Olympiad Open 2022"]
[Site "Chennai"]
[Date "2022.08.01"]
[Round "4.49"]
[White "Uapingene, Uatiavi Jossy"]
[Black "Al Harazy, Khalid"]
[Result "1-0"]
[WhiteElo "1798"]
[BlackElo "2149"]
[Annotator "NA RC"]
[PlyCount "141"]
[EventDate "2022.??.??"]
[TimeControl "60"]

1. d4 {[%emt 0:00:04]} d5 {[%emt 0:00:07]} 2. Bg5 {[%emt 0:00:25]} Nf6 {
[%emt 0:03:01]} 3. Bxf6 {[%emt 0:00:44]} exf6 {[%emt 0:01:40]} 4. e3 {[%emt 0:
00:00]} Bd6 {[%emt 0:00:18]} 5. g3 {[%emt 0:00:06]} O-O {[%emt 0:00:03]} 6. Bg2
{[%emt 0:00:03]} c6 {[%emt 0:00:19]} 7. Ne2 {[%emt 0:01:47]} Be6 {[%emt 0:00:
00]} 8. O-O {[%emt 0:03:21]} Qc8 {[%emt 0:03:19]} 9. Re1 {[%emt 0:07:25]} Bh3 {
[%emt 0:01:45]} 10. Bh1 {[%emt 0:00:08]} g5 {[%emt 0:03:45]} 11. Nd2 {[%emt 0:
00:00]} f5 {[%emt 0:03:01]} 12. Nf3 {[%emt 0:01:53]} f6 {[%emt 0:01:28]} 13.
Bg2 {[%emt 0:00:45]} f4 {[%emt 0:08:49]} 14. exf4 {[%emt 0:00:07]} gxf4 {
[%emt 0:00:21]} 15. Qd2 {[%emt 0:04:02]} fxg3 {[%emt 0:03:20]} 16. hxg3 {
[%emt 0:00:41]} Bxg2 {[%emt 0:05:53]} 17. Kxg2 {[%emt 0:00:06]} Qg4 {[%emt 0:
00:00]} 18. Rh1 {[%emt 0:05:11]} Nd7 {[%emt 0:03:07]} 19. Rh4 {[%emt 0:01:08]}
Qf5 {[%emt 0:01:02]} 20. Rah1 {[%emt 0:00:35]} Rf7 {[%emt 0:01:49]} 21. Rh5 {
[%emt 0:00:30]} Qe4 {[%emt 0:00:57]} 22. Nc3 {[%emt 0:00:12]} Qe7 {[%emt 0:00:
00]} 23. Nh4 {[%emt 0:06:29]} Qd8 {[%emt 0:04:08]} 24. Qe2 {[%emt 0:09:16]} Qe8
{[%emt 0:07:13]} 25. Qf3 {[%emt 0:08:01]} Bf8 {[%emt 0:03:57]} 26. Nf5 {
[%emt 0:00:18]} Nb6 {[%emt 0:03:55]} 27. R1h4 {[%emt 0:11:24]} Qd7 {[%emt 0:00:
00]} 28. Ne2 {[%emt 0:01:46]} Re8 {[%emt 0:03:34]} 29. Nf4 {[%emt 0:00:10]} Re4
{[%emt 0:00:33]} 30. Qg4+ {[%emt 0:00:38]} Rg7 {[%emt 0:01:03]} 31. Nxg7 {
[%emt 0:07:14]} Qxg4 {[%emt 0:00:07]} 32. Rxg4 {[%emt 0:00:04]} Bxg7 {[%emt 0:
00:00]} 33. f3 {[%emt 0:01:34]} Re7 {[%emt 0:01:19]} 34. b3 {[%emt 0:03:51]}
Nd7 {[%emt 0:01:03]} 35. Rh6 {[%emt 0:03:35]} Rf7 {[%emt 0:05:28]} 36. Nh5 {
[%emt 0:01:22]} Kh8 {[%emt 0:00:25]} 37. Rxg7 {[%emt 0:00:23]} Rxg7 {[%emt 0:
00:00]} 38. Nxg7 {[%emt 0:00:04]} Kxg7 {[%emt 0:00:01]} 39. Rh1 {[%emt 0:00:30]
} Nf8 {[%emt 0:01:11]} 40. Re1 {[%emt 0:01:29]} Kf7 {[%emt 0:00:03]} 41. Kf2 {
[%emt 0:34:58]} Ne6 {[%emt 0:30:39]} 42. c3 {[%emt 0:00:08]} h5 {[%emt 0:01:24]
} 43. a4 {[%emt 0:04:52]} a6 {[%emt 0:02:33]} 44. b4 {[%emt 0:00:35]} Nc7 {
[%emt 0:01:31]} 45. Ke3 {[%emt 0:02:39]} Ne6 {[%emt 0:00:50]} 46. f4 {[%emt 0:
00:00]} f5 {[%emt 0:00:19]} 47. a5 {[%emt 0:00:13]} Nc7 {[%emt 0:00:48]} 48.
Kd3 {[%emt 0:01:19]} Ne8 {[%emt 0:00:12]} 49. Re5 {[%emt 0:00:12]} Nd6 {
[%emt 0:00:04]} 50. Re3 {[%emt 0:03:31]} Kf6 {[%emt 0:00:06]} 51. Re5 {[%emt 0:
00:00]} Kf7 {[%emt 0:01:06]} 52. Re1 {[%emt 0:00:08]} Kf6 {[%emt 0:00:22]} 53.
Rh1 {[%emt 0:00:08]} Kg6 {[%emt 0:00:26]} 54. Rh2 {[%emt 0:00:48]} Ne4 {
[%emt 0:00:11]} 55. c4 {[%emt 0:01:29]} Nxg3 {[%emt 0:00:27]} 56. cxd5 {
[%emt 0:00:24]} cxd5 {[%emt 0:00:05]} 57. b5 {[%emt 0:01:05]} axb5 {[%emt 0:00:
00]} 58. Rb2 {[%emt 0:00:08]} h4 {[%emt 0:00:01]} 59. Rxb5 {[%emt 0:00:04]} h3
{[%emt 0:00:30]} 60. Rb6+ {[%emt 0:00:02]} Kh5 {[%emt 0:00:06]} 61. Rxb7 {
[%emt 0:00:58]} Kg4 {[%emt 0:00:15]} 62. Rb1 {[%emt 0:00:20]} Nh5 {[%emt 0:00:
00]} 63. a6 {[%emt 0:04:30]} Nxf4+ {[%emt 0:00:03]} 64. Ke3 {[%emt 0:00:07]}
Ne6 {[%emt 0:00:11]} 65. Rg1+ {[%emt 0:00:42]} Kh4 {[%emt 0:00:54]} 66. a7 {
[%emt 0:00:41]} h2 {[%emt 0:01:01]} 67. Rh1 {[%emt 0:00:25]} f4+ {[%emt 0:00:
00]} 68. Kf3 {[%emt 0:01:35]} Nxd4+ {[%emt 0:00:29]} 69. Kxf4 {[%emt 0:00:16]}
Ne6+ {[%emt 0:00:01]} 70. Ke5 {[%emt 0:00:27]} Nc7 {[%emt 0:00:17]} 71. Rxh2+ {
[%emt 0:00:06]} 1-0

[Event "44th Chess Olympiad Open 2022"]
[Site "Chennai"]
[Date "2022.08.01"]
[Round "4.50"]
[White "Tapia Ostolaza, Alexei"]
[Black "Attalib, Osama A."]
[Result "1-0"]
[WhiteElo "2201"]
[BlackElo "2033"]
[Annotator "NA RC"]
[PlyCount "112"]
[EventDate "2022.??.??"]
[TimeControl "60"]

1. Nf3 {[%emt 0:00:06]} Nf6 {[%emt 0:00:33]} 2. g3 {[%emt 0:00:09]} d6 {
[%emt 0:01:25]} 3. d4 {[%emt 0:00:14]} c6 {[%emt 0:00:41]} 4. Bg2 {[%emt 0:00:
00]} Nbd7 {[%emt 0:00:09]} 5. O-O {[%emt 0:03:34]} e5 {[%emt 0:00:32]} 6. dxe5
{[%emt 0:05:46]} dxe5 {[%emt 0:00:11]} 7. Bg5 {[%emt 0:00:47]} Qc7 {[%emt 0:00:
00]} 8. c3 {[%emt 0:05:08]} Be7 {[%emt 0:01:19]} 9. Nbd2 {[%emt 0:01:40]} O-O {
[%emt 0:03:33]} 10. Qc2 {[%emt 0:01:12]} Re8 {[%emt 0:00:47]} 11. Rfd1 {
[%emt 0:04:40]} h6 {[%emt 0:00:34]} 12. Bxf6 {[%emt 0:00:24]} Nxf6 {[%emt 0:00:
00]} 13. Nh4 {[%emt 0:00:53]} Bf8 {[%emt 0:03:29]} 14. Ne4 {[%emt 0:00:41]}
Nxe4 {[%emt 0:02:35]} 15. Bxe4 {[%emt 0:03:19]} Be6 {[%emt 0:01:28]} 16. Rd2 {
[%emt 0:14:22]} Rad8 {[%emt 0:00:21]} 17. Bh7+ {[%emt 0:00:37]} Kh8 {[%emt 0:
00:00]} 18. Bd3 {[%emt 0:01:39]} Rd7 {[%emt 0:01:00]} 19. Rad1 {[%emt 0:03:19]}
Red8 {[%emt 0:00:25]} 20. Nf3 {[%emt 0:03:05]} b5 {[%emt 0:09:24]} 21. a4 {
[%emt 0:05:53]} b4 {[%emt 0:02:04]} 22. c4 {[%emt 0:04:25]} Bc5 {[%emt 0:08:11]
} 23. Bf5 {[%emt 0:10:47]} Rxd2 {[%emt 0:10:42]} 24. Rxd2 {[%emt 0:00:11]} Rxd2
{[%emt 0:00:17]} 25. Nxd2 {[%emt 0:00:10]} Qb6 {[%emt 0:15:10]} 26. Bxe6 {
[%emt 0:02:15]} Bxf2+ {[%emt 0:01:05]} 27. Kg2 {[%emt 0:00:25]} fxe6 {[%emt 0:
00:00]} 28. Ne4 {[%emt 0:05:44]} b3 {[%emt 0:04:14]} 29. Qd2 {[%emt 0:01:24]}
Be3 {[%emt 0:09:54]} 30. a5 {[%emt 0:02:33]} Qd4 {[%emt 0:03:29]} 31. Qxd4 {
[%emt 0:00:08]} Bxd4 {[%emt 0:01:50]} 32. Nd2 {[%emt 0:00:32]} Bxb2 {[%emt 0:
00:00]} 33. Nxb3 {[%emt 0:01:55]} Kg8 {[%emt 0:04:08]} 34. Kf3 {[%emt 0:03:06]}
a6 {[%emt 0:04:10]} 35. Nc5 {[%emt 0:01:11]} Bc3 {[%emt 0:02:53]} 36. Nxe6 {
[%emt 0:01:54]} Bxa5 {[%emt 0:01:00]} 37. Nc5 {[%emt 0:00:37]} Kf7 {[%emt 0:00:
00]} 38. Ke4 {[%emt 0:02:03]} Kf6 {[%emt 0:02:15]} 39. Nxa6 {[%emt 0:00:17]}
Ke6 {[%emt 0:01:02]} 40. Nc5+ {[%emt 0:00:14]} Kf6 {[%emt 0:00:38]} 41. Nd7+ {
[%emt 0:30:31]} Ke6 {[%emt 0:30:21]} 42. Nxe5 {[%emt 0:00:33]} c5 {[%emt 0:00:
00]} 43. Nd3 {[%emt 0:00:43]} Bb6 {[%emt 0:00:29]} 44. Nf4+ {[%emt 0:00:09]}
Kd6 {[%emt 0:00:32]} 45. Kf5 {[%emt 0:00:09]} Bd8 {[%emt 0:00:25]} 46. Nh5 {
[%emt 0:00:42]} g6+ {[%emt 0:00:00]} 47. Kxg6 {[%emt 0:00:00]} Ke5 {[%emt 0:00:
00]} 48. Ng7 {[%emt 0:00:00]} Bg5 {[%emt 0:00:00]} 49. Nf5 {[%emt 0:00:00]} Bc1
{[%emt 0:00:00]} 50. g4 {[%emt 0:00:00]} Bd2 {[%emt 0:00:00]} 51. h4 {[%emt 0:
00:00]} Kf4 {[%emt 0:00:00]} 52. Nxh6 {[%emt 0:00:00]} Ke3 {[%emt 0:00:00]} 53.
Nf5+ {[%emt 0:00:00]} Kxe2 {[%emt 0:00:00]} 54. h5 {[%emt 0:00:00]} Kd3 {
[%emt 0:00:00]} 55. g5 {[%emt 0:00:00]} Kxc4 {[%emt 0:00:00]} 56. h6 {[%emt 0:
00:00]} Kd5 {[%emt 0:00:41]} 1-0